bitfinex-derivatives/quotes_SOLF0:USTF0_20250720
["timestamp","ask_amount","ask_price","bid_price","bid_amount"]
[1752977898023,8.6872,177.93,177.92,3.11]
[1752977898823,5.6174,177.92,177.91,145.30158642]
[1752977899019,8.6874,177.92,177.91,148.41158642]
[1752977899221,8.6874,177.92,177.91,145.30158642]
[1752977899621,10.56780736,177.92,177.91,145.30158642]
[1752977900927,3.27,177.9,177.84,3.25]
[1752977901120,1.88040736,177.9,177.85,108.6994]
[1752977901324,1.88040736,177.9,177.86,3.25]
[1752977901526,5.6186,177.89,177.86,3.25]
[1752977902121,3.27,177.89,177.86,3.25]
[1752977902325,3.27,177.89,177.87,3.25]
[1752977902521,3.27,177.88,177.87,3.25]
[1752977903021,5.619,177.87,177.85,103.08]
[1752977903325,8.889,177.87,177.86,3.25]
[1752977903623,8.8893,177.86,177.85,106.33]
[1752977903820,8.8893,177.86,177.72,11.2474]
[1752977903821,3.27,177.86,177.83,3.25]
[1752977904022,1.88040736,177.85,177.82,3.25]
[1752977904326,10.77020736,177.85,177.82,3.25]
[1752977904521,7.50020736,177.85,177.82,3.25]
[1752977905528,5.62,177.84,177.82,3.25]
[1752977905727,5.62,177.84,177.83,3.25]
[1752977908629,8.89,177.84,177.83,3.25]
[1752977908819,1.88040736,177.85,177.81,106.33]
[1752977909023,1.88040736,177.83,177.81,106.33]
[1752977909225,3.27,177.82,177.81,106.33]
[1752977909728,3.27,177.82,177.81,103.08]
[1752977909930,8.8906,177.82,177.81,103.08]
[1752977910128,3.27,177.82,177.78,103.1]
[1752977910430,3.27,177.8,177.79,3.25]
[1752977910729,3.27,177.82,177.79,3.25]
[1752977911626,5.6211,177.81,177.79,3.25]
[1752977912026,3.27,177.84,177.79,3.25]
[1752977912326,5.15040736,177.87,177.79,3.25]
[1752977912531,5.6202,177.84,177.8,5.621]
[1752977912733,5.6202,177.84,177.81,3.25]
[1752977913030,7.50010736,177.85,177.81,8.8707]
[1752977913227,10.77010736,177.85,177.82,3.25]
[1752977914730,10.77010736,177.85,177.81,5.6207]
[1752977914731,5.62,177.84,177.81,5.6207]
[1752977914930,8.89,177.84,177.83,3.25]
[1752977915824,5.62,177.84,177.83,3.25]
[1752977916736,7.50010736,177.85,177.81,5.6207]
[1752977916935,10.77010736,177.85,177.84,3.25]
[1752977918035,1.88040736,177.89,177.84,3.25]
[1752977918334,3.27,177.89,177.84,3.25]
[1752977918535,5.6189,177.88,177.84,5.6197]
[1752977918736,5.6189,177.88,177.85,3.25]
[1752977919131,8.8884,177.89,177.85,3.25]
[1752977919332,5.6184,177.89,177.85,3.25]
[1752977920140,5.6181,177.9,177.84,5.13040736]
[1752977920335,5.15040736,177.92,177.84,5.13040736]
[1752977920336,3.27,177.91,177.85,3.25]
[1752977920833,3.27,177.91,177.86,3.25]
[1752977921135,3.27,177.89,177.84,3.25]
[1752977921737,5.6192,177.87,177.84,3.25]
[1752977922037,3.27,177.87,177.84,3.25]
[1752977922335,5.6191,177.87,177.84,3.25]
[1752977924032,5.6191,177.87,177.84,5.6199]
[1752977924237,5.6191,177.87,177.85,3.25]
[1752977925039,5.6193,177.86,177.85,3.25]
[1752977925738,10.76930736,177.88,177.85,3.25]
[1752977925942,8.8889,177.88,177.85,3.25]
[1752977928936,8.889,177.87,177.85,3.25]
[1752977929137,3.27,177.86,177.84,3.25]
[1752977929443,3.27,177.86,177.85,3.25]
[1752977929942,8.8888,177.88,177.85,3.25]
[1752977930539,8.759,177.87,177.84,3.05]
[1752977930847,3.14,177.86,177.84,3.05]
[1752977931048,8.7587,177.88,177.84,3.05]
[1752977931341,3.14,177.87,177.84,3.05]
[1752977931541,3.14,177.86,177.84,3.05]
[1752977932146,3.14,177.86,177.84,8.6699]
[1752977932342,3.14,177.87,177.86,3.05]
[1752977935242,5.6185,177.89,177.84,5.6199]
[1752977935441,5.6185,177.89,177.85,3.05]
[1752977935442,3.14,177.88,177.85,3.05]
[1752977935946,3.14,177.87,177.84,5.6199]
[1752977936146,3.14,177.87,177.86,3.05]
[1752977939148,5.6182,177.9,177.86,3.05]
[1752977939149,8.7582,177.9,177.86,3.05]
[1752977939348,3.14,177.88,177.86,3.05]
[1752977939549,3.14,177.88,177.87,3.05]
[1752977939945,3.14,177.89,177.84,3.05]
[1752977940346,3.14,177.89,177.85,5.6195]
[1752977940550,3.14,177.89,177.86,3.05]
[1752977940850,3.14,177.89,177.85,3.05]
[1752977941444,3.14,177.89,177.86,3.05]
[1752977941639,5.6185,177.89,177.83,108.7401]
[1752977941845,3.14,177.88,177.84,3.05]
[1752977942249,3.14,177.86,177.84,3.05]
[1752977942651,1.88040736,177.88,177.83,103.12]
[1752977942848,1.88040736,177.86,177.83,103.12]
[1752977943050,3.14,177.85,177.83,106.17]
[1752977943750,3.14,177.85,177.83,3.05]
[1752977943951,3.14,177.85,177.8,3.05]
[1752977945651,3.14,177.85,177.81,5.6206]
[1752977945961,3.14,177.85,177.82,3.05]
[1752977946350,3.14,177.92,177.83,3.05]
[1752977946647,5.02040736,177.89,177.83,3.05]
[1752977947048,5.02040736,177.89,177.83,8.6701]
[1752977947351,1.88040736,177.89,177.84,3.05]
[1752977947752,3.14,177.88,177.83,3.05]
[1752977948849,3.14,177.86,177.82,3.05]
[1752977949053,3.14,177.86,177.83,3.05]
[1752977949355,3.14,177.86,177.8,3.05]
[1752977949956,1.88040736,177.87,177.82,5.6205]
[1752977950150,3.14,177.9,177.83,3.05]
[1752977950354,3.14,177.9,177.84,104.94040736]
[1752977950555,3.14,177.9,177.85,3.05]
[1752977951455,3.14,177.9,177.86,3.05]
[1752977951754,3.14,177.9,177.85,3.05]
[1752977952058,1.88040736,177.89,177.86,3.05]
[1752977952255,3.14,177.88,177.86,3.05]
[1752977952455,3.14,177.88,177.87,3.05]
[1752977953756,3.14,177.88,177.84,103.06]
[1752977953958,377.82,177.98,177.84,106.11]
[1752977953959,1.88040736,177.87,177.84,106.11]
[1752977954156,3.14,177.86,177.84,3.05]
[1752977954757,3.14,177.86,177.8,103.04]
[1752977954954,3.14,177.86,177.83,3.05]
[1752977955657,5.02040736,177.85,177.83,3.05]
[1752977955859,3.14,177.84,177.83,3.05]
[1752977956057,3.14,177.84,177.81,3.05]
[1752977956261,1.88040736,177.85,177.8,108.661]
[1752977956449,3.14,177.82,177.8,111.711]
[1752977956653,3.14,177.82,177.81,3.05]
[1752977956853,1.88040736,177.85,177.8,108.661]
[1752977957053,3.14,177.84,177.8,108.661]
[1752977957249,3.14,177.84,177.83,3.05]
[1752977957658,3.14,177.84,177.8,3.05]
[1752977957859,3.14,177.81,177.78,3.05]
[1752977958161,3.14,177.81,177.79,3.05]
[1752977958360,3.14,177.81,177.8,3.05]
[1752977958560,1.88040736,177.82,177.8,3.05]
[1752977958762,5.02040736,177.82,177.8,3.05]
[1752977958959,1.88040736,177.84,177.8,3.05]
[1752977959166,5.02040736,177.84,177.8,3.05]
[1752977959662,5.02040736,177.84,177.81,3.05]
[1752977960063,3.14,177.83,177.81,3.05]
[1752977960465,3.14,177.83,177.8,3.05]
[1752977960665,3.12,177.82,177.8,3.05]
[1752977961163,3.12,177.82,177.81,3.05]
[1752977962265,3.12,177.82,177.78,5.6216]
[1752977962467,3.12,177.81,177.8,3.05]
[1752977963254,5.00040736,177.82,177.81,3.05]
[1752977965262,1.88040736,177.82,177.81,3.05]
[1752977966466,5.00040736,177.82,177.81,3.05]
[1752977967266,5.00040736,177.86,177.81,3.05]
[1752977967466,5.00040736,177.88,177.81,3.05]
[1752977968162,3.12,177.87,177.84,3.05]
[1752977970065,3.12,177.87,177.84,5.6199]
[1752977970269,3.12,177.87,177.85,3.05]
[1752977970868,3.12,177.87,177.85,5.6195]
[1752977971064,3.12,177.87,177.86,3.05]
[1752977973672,3.12,177.87,177.84,3.05]
[1752977973869,3.12,177.84,177.81,3.05]
[1752977974071,3.12,177.82,177.76,3.05]
[1752977974376,3.12,177.76,177.73,3.05]
[1752977974671,3.12,177.73,177.71,226.84478037]
[1752977974971,5.00040736,177.73,177.72,3.05]
[1752977975574,5.00040736,177.75,177.72,3.05]
[1752977976275,5.00040736,177.77,177.72,3.05]
[1752977976569,3.12,177.76,177.71,221.22098037]
[1752977976872,3.12,177.75,177.72,3.05]
[1752977977262,3.12,177.75,177.73,3.05]
[1752977978076,3.12,177.74,177.73,3.05]
[1752977979268,3.12,177.73,177.71,224.27098037]
[1752977979469,5.00040736,177.73,177.71,224.27098037]
[1752977979669,3.12,177.72,177.71,224.27098037]
[1752977980271,5.00040736,177.73,177.71,224.27098037]
[1752977980474,5.00040736,177.73,177.72,3.05]
[1752977980877,1.88040736,177.73,177.72,3.05]
[1752977982976,5.00040736,177.73,177.72,3.05]
[1752977984179,5.00040736,177.73,177.71,221.22098037]
[1752977984377,3.12,177.72,177.71,221.22098037]
[1752977984678,3.12,177.72,177.71,224.27098037]
[1752977985380,1.88040736,177.73,177.71,221.22098037]
[1752977985575,5.00040736,177.73,177.72,3.05]
[1752977985879,1.88040736,177.73,177.72,3.05]
[1752977986680,8.02592106,177.84,177.72,3.05]
[1752977986681,5.00040736,177.75,177.74,3.05]
[1752977987779,3.12,177.74,177.72,3.05]
[1752977988084,3.12,177.72,177.71,224.27098037]
[1752977988779,3.12,177.72,177.71,221.22098037]
[1752977990379,3.28,177.71,177.7,3.21]
[1752977990585,5.16040736,177.71,177.7,3.21]
[1752977992495,3.28,177.7,177.65,3.21]
[1752977992693,1.88040736,177.75,177.57,4.69933256]
[1752977992694,3.28,177.65,177.57,1.88040736]
[1752977992989,1.88040736,177.75,177.59,5.6278]
[1752977992990,3.28,177.62,177.59,5.6278]
[1752977993194,5.16040736,177.61,177.58,3.21]
[1752977993393,5.16040736,177.61,177.57,103.06]
[1752977993584,1.88040736,177.66,177.58,3.21]
[1752977993585,1.88040736,177.59,177.58,3.21]
[1752977993789,1.88040736,177.59,177.54,103.06]
[1752977993987,3.28,177.55,177.54,3.21]
[1752977994285,3.28,177.55,177.51,345.2666769]
[1752977994286,3.28,177.54,177.52,3.21]
[1752977994888,5.16040736,177.54,177.53,3.21]
[1752977995088,5.16040736,177.54,177.51,345.2666769]
[1752977995395,5.6287,177.57,177.48,103.08]
[1752977995396,5.16040736,177.52,177.48,103.08]
[1752977995588,1.88040736,177.5,177.49,3.21]
[1752977995794,1.88040736,177.5,177.49,8.841]
[1752977996095,1.88040736,177.52,177.49,3.21]
[1752977996593,1.88040736,177.53,177.49,3.21]
[1752977996793,3.28,177.52,177.51,3.21]
[1752977996994,1.88040736,177.51,177.49,3.21]
[1752977997196,1.88040736,177.51,177.5,3.21]
[1752977997900,3.28,177.5,177.48,111.9213]
[1752977998591,3.28,177.5,177.48,8.8413]
[1752977998891,1.88040736,177.57,177.47,3.21]
[1752977998892,1.88040736,177.49,177.47,3.21]
[1752977999093,3.28,177.48,177.47,3.21]
[1752977999891,1.88040736,177.51,177.47,3.21]
[1752978000396,1.88040736,177.55,177.49,3.21]
[1752978000891,1.88040736,177.57,177.49,3.21]
[1752978001091,1.88040736,177.57,177.55,5.629]
[1752978001291,1.88040736,177.57,177.53,3.21]
[1752978001499,5.16040736,177.55,177.53,3.21]
[1752978001893,1.88040736,177.55,177.54,3.21]
[1752978002996,6.35145276,177.57,177.55,3.21]
[1752978003793,3.28,177.56,177.55,3.21]
[1752978003988,3.28,177.56,177.53,8.8397]
[1752978004190,3.07145276,177.55,177.51,3.21]
[1752978004396,6.35145276,177.52,177.49,103.14]
[1752978004596,6.35145276,177.52,177.5,3.21]
[1752978004998,0.98039216,177.61,177.51,3.21]
[1752978005198,6.35145276,177.57,177.51,3.21]
[1752978005593,3.07145276,177.57,177.53,3.21]
[1752978005797,6.35145276,177.57,177.5,3.21]
[1752978006400,3.07145276,177.57,177.51,3.21]
[1752978006700,6.35145276,177.59,177.51,3.21]
[1752978006900,6.35145276,177.59,177.56,5.6286]
[1752978007103,6.35145276,177.59,177.56,8.8386]
[1752978007303,6.35145276,177.59,177.57,3.21]
[1752978008397,3.28,177.58,177.57,3.21]
[1752978008602,3.28,177.57,177.55,8.839]
[1752978009806,3.28,177.58,177.56,3.21]
[1752978010206,3.28,177.58,177.56,8.8387]
[1752978010607,3.28,177.58,177.56,5.6287]
[1752978010804,3.28,177.58,177.57,3.21]
[1752978011002,3.28,177.58,177.55,3.21]
[1752978011198,3.28,177.58,177.56,3.21]
[1752978011809,3.28,177.57,177.56,3.21]
[1752978012007,3.28,177.57,177.54,5.6293]
[1752978012206,3.28,177.57,177.55,3.21]
[1752978012405,9.88759216,177.61,177.55,3.21]
[1752978012609,3.28,177.6,177.55,3.21]
[1752978012809,3.07145276,177.59,177.49,106.21145276]
[1752978013108,3.07145276,177.61,177.51,3.07145276]
[1752978013308,3.07145276,177.61,177.52,3.21]
[1752978015313,6.35145276,177.64,177.53,3.07145276]
[1752978015507,6.35145276,177.64,177.62,3.21]
[1752978015914,11.97795276,177.64,177.62,3.21]
[1752978017111,3.28,177.66,177.57,3.07145276]
[1752978017309,3.28,177.66,177.58,3.21]
[1752978017514,3.07145276,177.67,177.58,3.21]
[1752978018514,3.07145276,177.67,177.65,5.6259]
[1752978018717,3.07145276,177.67,177.66,3.21]
[1752978019211,6.35145276,177.67,177.66,3.21]
[1752978019513,6.35145276,177.67,177.65,3.21]
[1752978020808,6.35145276,177.67,177.66,3.31]
[1752978024418,3.07145276,177.67,177.66,3.31]
[1752978024916,1.88225629,177.67,177.66,3.31]
[1752978025818,1.88225629,177.67,177.66,8.9356]
[1752978026012,1.88225629,177.7,177.62,3.31]
[1752978026611,1.88225629,177.66,177.62,3.31]
[1752978026918,1.88225629,177.64,177.57,3.31]
[1752978027117,3.2,177.63,177.62,3.31]
[1752978027812,1.88225629,177.64,177.62,3.31]
[1752978028013,3.2,177.63,177.55,103.14]
[1752978028213,3.2,177.62,177.6,3.31]
[1752978028518,5.08225629,177.62,177.6,3.31]
[1752978028718,3.2,177.61,177.6,3.31]
[1752978031020,3.2,177.61,177.58,3.31]
[1752978031222,1.88225629,177.59,177.58,3.31]
[1752978031420,5.08225629,177.59,177.58,3.31]
[1752978031621,5.08225629,177.59,177.56,5.6286]
[1752978031622,5.08225629,177.59,177.57,3.31]
[1752978032424,3.2,177.58,177.57,3.31]
[1752978033124,7.51015629,177.59,177.56,3.31]
[1752978033320,1.88225629,177.57,177.56,8.9388]
[1752978034624,1.88225629,177.57,177.56,3.31]
[1752978035324,1.88225629,177.57,177.56,8.9388]
[1752978035725,3.2,177.56,177.53,5.6297]
[1752978036027,1.88225629,177.54,177.53,8.9397]
[1752978036227,5.08225629,177.54,177.5,3.31]
[1752978036919,5.08225629,177.54,177.52,5.6298]
[1752978037223,1.88225629,177.54,177.53,3.31]
[1752978037626,5.08225629,177.54,177.53,8.9397]
[1752978038320,5.08225629,177.54,177.53,3.31]
[1752978038727,3.2,177.53,177.52,3.31]
[1752978039316,3.2,177.53,177.48,3.31]
[1752978039926,1.88225629,177.52,177.48,3.31]
[1752978040131,5.08225629,177.55,177.49,3.31]
[1752978040324,1.88225629,177.55,177.49,3.31]
[1752978040523,1.88225629,177.57,177.49,3.31]
[1752978040724,1.88225629,177.59,177.51,3.31]
[1752978041421,1.88225629,177.59,177.58,5.6282]
[1752978041622,1.88225629,177.61,177.58,3.31]
[1752978041828,5.08225629,177.63,177.58,3.31]
[1752978042520,5.08225629,177.63,177.48,1.88225629]
[1752978042521,5.08225629,177.59,177.55,3.31]
[1752978042717,3.2,177.58,177.57,3.31]
[1752978043324,1.88225629,177.59,177.57,3.31]
[1752978043522,5.08225629,177.59,177.57,3.31]
[1752978044224,1.88225629,177.6,177.58,8.9382]
[1752978044425,1.88225629,177.6,177.59,3.31]
[1752978045736,5.08225629,177.6,177.57,5.6284]
[1752978046034,5.08225629,177.6,177.58,3.31]
[1752978046432,5.08225629,177.6,177.59,3.31]
[1752978047033,5.6267,177.63,177.59,3.31]
[1752978047238,1.88225629,177.6,177.58,5.6281]
[1752978047829,1.88225629,177.6,177.59,3.31]
[1752978049529,5.08225629,177.6,177.59,3.31]
[1752978049934,3.2,177.59,177.58,3.31]
[1752978050535,1.88225629,177.6,177.58,3.31]
[1752978050734,5.01225629,177.6,177.59,3.05]
[1752978052630,1.88225629,177.6,177.59,3.05]
[1752978052837,1.88225629,177.62,177.59,3.05]
[1752978053236,5.01225629,177.64,177.59,3.05]
[1752978053539,3.13,177.63,177.59,3.05]
[1752978054839,3.13,177.63,177.61,3.05]
[1752978055041,3.13,177.63,177.62,3.05]
[1752978055435,3.13,177.69,177.62,3.05]
[1752978055641,1.88225629,177.66,177.62,3.05]
[1752978056041,5.01225629,177.66,177.63,5.6265]
[1752978056341,5.01225629,177.66,177.64,3.05]
[1752978056537,1.88225629,177.66,177.65,3.05]
[1752978056945,3.13,177.66,177.59,3.05]
[1752978057140,5.01225629,177.66,177.59,3.05]
[1752978057739,5.6259,177.65,177.61,5.6269]
[1752978058044,5.01225629,177.64,177.63,3.05]
[1752978058844,5.01225629,177.64,177.61,8.6769]
[1752978059044,3.13,177.63,177.62,3.05]
[1752978059345,5.01225629,177.65,177.56,1.88225629]
[1752978059543,3.13,177.67,177.59,3.05]
[1752978059944,3.13,177.67,177.66,3.05]
[1752978062142,7.50755629,177.68,177.65,3.05]
[1752978062143,1.88225629,177.68,177.65,3.05]
[1752978062346,1.88225629,177.66,177.63,3.05]
[1752978062546,109.18354079,177.73,177.63,3.05]
[1752978062748,1.88225629,177.65,177.58,3.05]
[1752978063553,1.88225629,177.65,177.62,5.6266]
[1752978063849,5.01225629,177.65,177.64,3.05]
[1752978064453,1.88225629,177.65,177.64,3.05]
[1752978065047,1.88225629,177.65,177.64,8.6763]
[1752978065247,1.88225629,177.65,177.64,3.05]
[1752978065447,5.01225629,177.65,177.64,3.05]
[1752978066152,1.88225629,177.65,177.64,3.05]
[1752978066849,5.01225629,177.65,177.64,3.05]
[1752978068244,5.01225629,177.65,177.64,8.6763]
[1752978068446,1.88225629,177.65,177.64,8.6763]
[1752978068749,1.88225629,177.65,177.64,3.05]
[1752978068956,1.88225629,177.65,177.64,8.6763]
[1752978069253,1.88225629,177.65,177.64,3.05]
[1752978069453,5.01225629,177.65,177.64,3.05]
[1752978070049,1.88225629,177.65,177.64,3.05]
[1752978070454,1.88225629,177.65,177.64,8.6763]
[1752978073556,1.88225629,177.65,177.63,8.6765]
[1752978073756,3.13,177.64,177.63,3.05]
[1752978074157,3.13,177.64,177.63,8.6766]
[1752978076559,3.13,177.64,177.56,3.05]
[1752978076761,5.01225629,177.6,177.56,3.05]
[1752978076958,5.01225629,177.6,177.58,5.6279]
[1752978077155,5.01225629,177.6,177.59,3.05]
[1752978080065,5.01225629,177.6,177.59,8.6778]
[1752978080260,1.88225629,177.6,177.59,8.6778]
[1752978085870,3.3,177.63,177.56,3.25]
[1752978086068,1.88225629,177.62,177.56,3.25]
[1752978087166,1.88225629,177.62,177.6,5.6272]
[1752978087369,5.18225629,177.62,177.61,3.25]
[1752978087967,5.6263,177.64,177.61,5.6272]
[1752978088170,5.18225629,177.62,177.61,8.8772]
[1752978089066,5.18225629,177.62,177.61,3.25]
[1752978089265,1.88225629,177.62,177.58,3.25]
[1752978089470,1.88225629,177.59,177.58,3.25]
[1752978089670,5.18225629,177.59,177.58,3.25]
[1752978089964,3.3,177.58,177.52,3.25]
[1752978090166,1.88225629,177.55,177.52,3.25]
[1752978090870,1.88225629,177.55,177.54,5.6294]
[1752978091070,1.88225629,177.55,177.54,8.8794]
[1752978092166,5.18225629,177.55,177.54,3.25]
[1752978092470,5.18225629,177.55,177.48,103.06]
[1752978092471,3.3,177.54,177.48,3.25]
[1752978092667,5.18225629,177.51,177.48,3.25]
[1752978092868,5.18225629,177.51,177.5,3.25]
[1752978094175,5.18225629,177.51,177.48,5.6313]
[1752978094176,3.3,177.5,177.48,3.25]
[1752978094472,1.88225629,177.49,177.48,3.25]
[1752978096272,1.88225629,177.5,177.48,3.25]
[1752978096675,1.88225629,177.5,177.49,3.25]
[1752978097065,5.18225629,177.5,177.49,3.25]
[1752978097668,1.88225629,177.5,177.49,3.25]
[1752978097871,1.88225629,177.5,177.47,133.17098016]
[1752978098075,1.88225629,177.5,177.48,3.25]
[1752978098276,5.18225629,177.5,177.49,3.25]
[1752978098671,3.3,177.49,177.48,3.25]
[1752978098870,3.3,177.49,177.47,127.53958016]
[1752978099070,1.88225629,177.5,177.47,127.53958016]
[1752978099270,5.18225629,177.48,177.47,130.78958016]
[1752978100468,10.81355629,177.48,177.47,127.53958016]
[1752978101375,5.18225629,177.48,177.47,127.53958016]
[1752978102275,5.18225629,177.48,177.47,130.78958016]
[1752978102776,10.81355629,177.48,177.47,130.78958016]
[1752978103673,1.88225629,177.48,177.47,130.78958016]
[1752978103883,1.88225629,177.51,177.48,3.25]
[1752978104171,1.88225629,177.53,177.5,5.6307]
[1752978104377,1.88225629,177.53,177.51,3.25]
[1752978104579,3.3,177.52,177.49,3.25]
[1752978104774,1.88225629,177.51,177.49,3.25]
[1752978104967,3.3,177.49,177.48,3.25]
[1752978105172,5.18225629,177.49,177.48,3.25]
[1752978105373,1.88225629,177.49,177.48,3.25]
[1752978108081,1.88225629,177.51,177.48,3.25]
[1752978109077,1.88225629,177.52,177.48,3.25]
[1752978109471,1.88225629,177.52,177.48,106.35]
[1752978109676,1.88225629,177.52,177.49,3.25]
[1752978110178,1.88225629,177.54,177.49,3.25]
[1752978110775,1.88225629,177.54,177.48,103.1]
[1752978110970,5.18225629,177.56,177.5,3.26]
[1752978111177,4.89225629,177.54,177.51,103.1]
[1752978111378,4.89225629,177.54,177.53,3.26]
[1752978111579,1.88225629,177.55,177.53,3.26]
[1752978111880,1.88225629,177.57,177.54,3.26]
[1752978112077,1.88225629,177.57,177.54,103.1]
[1752978112271,1.88225629,177.57,177.55,3.26]
[1752978113579,1.88225629,177.57,177.56,8.8888]
[1752978113774,1.88225629,177.59,177.57,3.26]
[1752978114380,1.88225629,177.61,177.58,3.26]
[1752978115070,4.89225629,177.61,177.58,3.26]
[1752978115881,10.51955629,177.61,177.58,3.26]
[1752978116783,10.51955629,177.61,177.6,3.26]
[1752978117282,1.88225629,177.61,177.6,3.26]
[1752978120384,7.50945629,177.61,177.6,3.26]
[1752978120784,10.51945629,177.61,177.6,3.26]
[1752978121185,10.51945629,177.61,177.56,3.26]
[1752978121186,1.88225629,177.61,177.56,3.26]
[1752978121385,3.01,177.59,177.56,3.26]
[1752978121785,5.6276,177.6,177.56,3.26]
[1752978122087,8.6376,177.6,177.56,3.26]
[1752978122291,3.01,177.6,177.57,3.26]
[1752978122487,7.50955629,177.61,177.57,3.26]
[1752978122788,1.88225629,177.61,177.57,3.26]
[1752978122979,7.50955629,177.61,177.57,3.26]
[1752978123177,1.88225629,177.63,177.57,3.26]
[1752978123687,4.89225629,177.63,177.57,3.26]
[1752978123889,3.01,177.61,177.57,3.26]
[1752978124389,4.89225629,177.61,177.57,3.26]
[1752978124589,3.01,177.6,177.58,3.26]
[1752978124790,3.01,177.59,177.58,3.26]
[1752978125588,8.6378,177.59,177.58,3.26]
[1752978126290,3.01,177.59,177.58,3.26]
[1752978126589,8.6376,177.6,177.57,3.26]
[1752978126784,5.6276,177.6,177.57,3.26]
[1752978127385,10.51955629,177.61,177.57,3.26]
[1752978128091,8.6376,177.6,177.57,3.26]
[1752978128291,3.01,177.6,177.57,3.26]
[1752978128491,4.89225629,177.63,177.57,3.26]
[1752978128984,10.51905629,177.63,177.59,3.26]
[1752978129593,10.51905629,177.63,177.6,3.26]
[1752978130193,4.89225629,177.63,177.6,8.8875]
[1752978130385,1.88225629,177.61,177.57,3.26]
[1752978130590,4.89225629,177.61,177.57,3.26]
[1752978131692,10.51965629,177.61,177.58,3.26]
[1752978132388,10.51965629,177.61,177.58,8.8882]
[1752978132589,1.88225629,177.61,177.58,5.6282]
[1752978132791,1.88225629,177.61,177.6,3.26]
[1752978132986,4.89225629,177.61,177.6,3.26]
[1752978134191,10.51945629,177.61,177.6,3.26]
[1752978134496,1.88225629,177.66,177.6,3.26]
[1752978134685,79.08603031,179.05,177.6,3.26]
[1752978134686,1.88225629,177.64,177.6,3.26]
[1752978135192,1.88225629,177.64,177.56,128.59592219]
[1752978135193,4.89225629,177.64,177.62,3.26]
[1752978135396,1.88225629,177.64,177.63,3.26]
[1752978137300,3.01,177.63,177.57,3.26]
[1752978137495,4.89225629,177.6,177.58,3.26]
[1752978137796,3.01,177.59,177.58,3.26]
[1752978139101,8.6378,177.59,177.58,3.26]
[1752978139701,3.01,177.59,177.58,3.26]
[1752978139897,1.88225629,177.6,177.58,3.26]
[1752978140102,1.88225629,177.6,177.57,3.26]
[1752978140607,1.88225629,177.6,177.58,5.6282]
[1752978140800,1.88225629,177.6,177.59,3.25]
[1752978142008,4.96225629,177.6,177.59,3.25]
[1752978144009,1.88225629,177.6,177.59,3.25]
[1752978145912,4.96225629,177.6,177.59,3.25]
[1752978146811,4.96225629,177.6,177.57,5.6284]
[1752978146812,3.08,177.59,177.57,3.25]
[1752978147013,3.08,177.58,177.57,3.25]
[1752978147311,4.96225629,177.58,177.57,3.25]
[1752978147514,4.96225629,177.58,177.56,128.59592219]
[1752978147718,3.08,177.57,177.56,131.84592219]
[1752978147917,3.08,177.57,177.52,3.25]
[1752978148217,1.88225629,177.54,177.53,3.25]
[1752978148608,4.96225629,177.56,177.53,3.25]